bitfinex-derivatives/quotes_ETHF0:USTF0_20241207
["timestamp","ask_amount","ask_price","bid_price","bid_amount"]
[1733592193933,4.70775934,3999.6,3999.5,1.46050026]
[1733592194235,0.7904,3999.6,3999.5,1.46050026]
[1733592196636,0.7904,3999.6,3999.5,1.28565026]
[1733592196826,0.7904,3999.6,3999.3,0.17486]
[1733592197028,0.7904,3999.6,3999.3,0.90205026]
[1733592197228,0.7904,3999.6,3999.3,1.07691026]
[1733592198232,0.7904,3999.6,3999.5,0.17485]
[1733592198844,0.7904,3999.6,3999.4,0.17485]
[1733592200140,0.7904,3999.6,3999.5,0.17485]
[1733592200340,0.7904,3999.6,3999.4,0.17485]
[1733592200533,0.7904,3999.6,3999.3,0.90205026]
[1733592200534,0.7904,3999.6,3999.5,0.17485]
[1733592200729,0.7904,3999.6,3999.4,0.17485]
[1733592201530,0.7904,3999.6,3999.3,0.90205026]
[1733592201735,0.7904,3999.6,3999.4,0.17486]
[1733592202740,5.67558809,3999.6,3999.3,1.07691026]
[1733592202929,4.88518809,3999.5,3999.4,0.17486]
[1733592203935,4.88518809,3999.5,3999.2,3.2078]
[1733592203936,4.88518809,3999.5,3999.3,0.90205026]
[1733592204244,0.7904,3999.6,3999.2,3.2078]
[1733592204245,4.88518809,3999.4,3999.2,3.2078]
[1733592204435,0.4054,3999.3,3999.2,3.2078]
[1733592204636,0.4054,3999.3,3999.1,1.07692026]
[1733592204833,5.29058809,3999.3,3999.1,0.17487]
[1733592205033,0.4054,3999.3,3999.1,0.90205026]
[1733592205434,0.4054,3999.3,3998.9,0.17487]
[1733592205636,4.9070925,3999.1,3998.9,0.17487]
[1733592205837,5.3155925,3999.0,3998.8,0.90205026]
[1733592206141,5.6994925,3999.0,3998.8,0.90205026]
[1733592206340,4.9070925,3998.9,3998.8,0.90205026]
[1733592206537,4.9070925,3998.9,3998.4,0.655]
[1733592206738,3.92612692,3998.6,3998.5,0.17489]
[1733592206942,4.9070925,3998.7,3998.6,0.17489]
[1733592207244,4.9070925,3998.7,3998.5,0.90205026]
[1733592207245,4.9070925,3998.8,3998.5,0.90205026]
[1733592207444,0.3869,3998.7,3998.6,0.17489]
[1733592209644,0.3869,3998.7,3998.6,4.07452944]
[1733592210040,0.3869,3998.7,3998.6,0.17489]
[1733592210443,0.3869,3998.7,3998.6,3.89963944]
[1733592210739,0.3869,3998.7,3998.5,0.17489]
[1733592211145,0.3869,3998.7,3998.6,0.17489]
[1733592211840,0.3869,3998.7,3998.6,4.07452944]
[1733592212049,0.3869,3998.7,3998.6,0.17489]
[1733592212444,0.3869,3998.7,3998.5,3.89963944]
[1733592212742,0.3869,3998.7,3998.5,4.07452944]
[1733592213448,0.3869,3998.7,3998.5,0.17489]
[1733592213646,0.3869,3998.7,3998.5,4.07452944]
[1733592214451,0.3869,3998.7,3998.6,0.17489]
[1733592215155,0.3869,3998.7,3998.5,4.07452944]
[1733592215345,0.3869,3998.7,3998.6,0.17489]
[1733592215943,0.3869,3998.7,3998.6,4.07452944]
[1733592216743,0.3869,3998.7,3998.6,4.09845346]
[1733592217851,0.3869,3998.7,3998.6,0.17489]
[1733592220057,0.3869,3998.7,3998.5,0.17489]
[1733592221153,0.3869,3998.7,3998.6,0.17489]
[1733592224757,4.31329397,3998.7,3998.6,0.17489]
[1733592226858,0.3869,3998.7,3998.6,0.17489]
[1733592227053,4.31379419,3998.7,3998.6,0.17489]
[1733592227560,3.92689419,3998.7,3998.6,0.17489]
[1733592228662,3.92689419,3998.7,3998.6,1.07528145]
[1733592231853,3.2078,3998.9,3998.8,0.17488]
[1733592233465,0.4085,3999.0,3998.9,0.17488]
[1733592235374,0.4085,3999.0,3998.8,3.92356346]
[1733592235664,0.4085,3999.0,3998.9,0.17488]
[1733592240363,0.4085,3999.0,3998.7,0.3781]
[1733592240765,0.4085,3999.0,3998.7,0.55298]
[1733592241067,0.58337,3999.0,3998.7,0.3781]
[1733592241468,0.58337,3999.0,3998.7,0.55299]
[1733592241980,0.17488,3998.9,3998.7,0.3781]
[1733592242472,0.3931,3998.8,3998.7,0.3781]
[1733592242672,0.3931,3998.8,3998.6,0.17489]
[1733592242978,0.406,3998.7,3998.6,0.17489]
[1733592245373,0.3931,3998.8,3998.7,0.17489]
[1733592245874,5.86222571,3999.1,3998.8,0.17488]
[1733592246075,0.4014,3999.0,3998.9,0.3884]
[1733592247075,0.4014,3999.0,3998.9,1.28879145]
[1733592247277,0.4014,3999.0,3998.9,1.46367145]
[1733592248572,2.95000855,3999.1,3999.0,0.17487]
[1733592248874,2.95000855,3999.5,3999.0,12.81735985]
[1733592249066,3.93189643,3999.6,3999.4,4.10188426]
[1733592249264,4.30899643,3999.7,3999.6,0.17485]
[1733592249468,4.30899643,3999.7,3999.5,0.767]
[1733592249675,4.30899643,3999.7,3999.6,0.17485]
[1733592250075,4.30899643,3999.7,3999.6,1.07524145]
[1733592251371,0.3771,3999.7,3999.6,1.07524145]
[1733592253185,2.94834394,3999.7,3999.6,1.07524145]
[1733592253482,2.94834394,3999.8,3999.7,0.17484]
[1733592253675,2.94834394,3999.9,3999.8,0.17484]
[1733592254879,4.4142,4000.3,3999.6,0.90039145]
[1733592255076,5.86222571,3999.9,3999.5,1.20413]
[1733592255276,5.86222571,4000.0,3999.9,0.17483]
[1733592256173,5.86222571,4000.1,3999.6,0.17485]
[1733592256373,5.86222571,4000.1,3999.5,0.767]
[1733592256374,5.86222571,4000.1,3999.8,1.07523145]
[1733592256981,5.86222571,4000.1,3999.9,0.17483]
[1733592257781,5.86222571,4000.1,4000.0,0.17483]
[1733592258080,5.86222571,4000.1,3999.9,0.17483]
[1733592258977,5.86222571,4000.1,4000.0,0.17483]
[1733592259482,5.86222571,4000.2,4000.0,0.17483]
[1733592260676,5.86222571,4000.2,3999.8,0.90039145]
[1733592260978,5.86222571,4000.2,3999.5,0.767]
[1733592261184,4.90640459,3999.7,3999.6,0.17485]
[1733592261376,4.90640459,3999.7,3999.6,1.07524145]
[1733592261775,4.90640459,3999.7,3999.6,1.45694145]
[1733592262085,4.4142,4000.3,4000.1,0.17482]
[1733592262885,4.4142,4000.3,4000.2,0.17482]
[1733592264492,4.4142,4000.3,4000.1,0.4143]
[1733592264783,4.4142,4000.3,4000.1,0.58912]
[1733592264980,4.4142,4000.3,4000.1,0.4143]
[1733592265177,4.4142,4000.3,4000.2,0.17482]
[1733592265488,4.4142,4000.3,4000.1,0.58912]
[1733592265875,4.4142,4000.3,4000.1,0.4143]
[1733592266079,4.4142,4000.3,4000.2,0.17482]
[1733592266881,4.58902,4000.3,4000.1,0.17482]
[1733592267081,4.4142,4000.3,4000.1,0.17482]
[1733592267888,1.2064,4000.3,3999.9,0.4004]
[1733592268383,1.38122,4000.3,4000.1,0.17482]
[1733592268786,1.38122,4000.3,4000.2,0.17482]
[1733592268787,1.2064,4000.3,4000.2,0.17482]
[1733592275987,1.38122,4000.3,4000.2,0.17482]
[1733592277588,1.38122,4000.3,3999.9,0.4004]
[1733592277788,1.38122,4000.3,4000.2,0.17482]
[1733592278283,1.38122,4000.3,3999.9,0.4004]
[1733592278490,3.92189632,4000.0,3999.9,0.57523]
[1733592280591,2.94155192,4000.0,3999.9,0.65333591]
[1733592280996,3.92189632,4000.3,3999.9,0.65333591]
[1733592280997,2.94155192,4000.1,4000.0,0.17483]
[1733592281198,2.94155192,4000.1,4000.0,1.15332736]
[1733592281394,2.94155192,4000.2,4000.1,0.17482]
[1733592281597,2.94155192,4000.2,4000.1,1.55961566]
[1733592281892,2.94155192,4000.2,4000.1,1.48151145]
[1733592282784,2.94155192,4000.2,4000.1,4.76741627]
[1733592283191,2.94155192,4000.2,4000.1,4.68931145]
[1733592284592,2.94155192,4000.3,4000.1,4.51449145]
[1733592284895,2.94099935,4000.2,4000.1,4.51449145]
[1733592285090,0.3749,4000.7,4000.3,0.17481]
[1733592285396,0.3749,4000.7,4000.1,8.44151571]
[1733592285798,0.3749,4000.7,4000.4,0.17481]
[1733592286297,0.3749,4000.7,4000.5,0.3998]
[1733592287795,0.3749,4000.7,4000.5,0.57461]
[1733592287995,0.3749,4000.7,4000.5,0.3998]
[1733592288592,0.3749,4000.7,4000.5,0.57461]
[1733592289490,0.3749,4000.7,4000.5,0.3998]
[1733592289898,0.3749,4000.7,4000.6,0.1748]
[1733592291196,0.5497,4000.7,4000.6,0.1748]
[1733592291901,0.3749,4000.7,4000.6,0.1748]
[1733592293995,0.5497,4000.7,4000.5,0.5746]
[1733592294297,0.5497,4000.7,4000.6,0.1748]
[1733592294503,0.3749,4000.7,4000.5,0.3998]
[1733592294703,0.5497,4000.7,4000.6,0.1748]
[1733592295095,0.1748,4000.6,4000.5,0.57461]
[1733592295507,0.3749,4000.7,4000.5,0.3998]
[1733592295699,0.5497,4000.7,4000.6,0.1748]
[1733592296301,0.3749,4000.7,4000.5,0.3998]
[1733592296603,0.1748,4000.6,4000.5,0.5746]
[1733592297509,0.5497,4000.7,4000.6,0.1748]
[1733592298501,0.3749,4000.7,4000.1,3.6141]
[1733592298704,5.08581352,4000.2,4000.1,0.17482]
[1733592298895,0.17483,4000.1,4000.0,0.17483]
[1733592299093,1.34083,4000.1,4000.0,0.17483]
[1733592299806,1.166,4000.1,4000.0,0.17483]
[1733592300305,4.11306776,4000.1,4000.0,0.17483]
[1733592300506,4.28788776,4000.1,4000.0,0.17483]
[1733592300703,4.28788776,4000.1,3999.8,4.82741571]
[1733592300704,0.17483,4000.0,3999.8,1.07522145]
[1733592300899,0.17483,3999.9,3999.8,0.90039145]
[1733592301094,0.17484,3999.8,3999.7,5.83502426]
[1733592301302,0.17484,3999.8,3999.7,1.908]
[1733592301500,0.17484,3999.8,3999.6,3.38264]
[1733592301705,0.17484,3999.7,3999.6,3.38265]
[1733592302503,0.17484,3999.7,3999.6,3.2078]
[1733592303209,0.17484,3999.7,3999.6,3.38265]
[1733592303404,3.92942368,4000.0,3999.3,3.92702426]
[1733592303405,4.82981513,3999.9,3999.3,3.92702426]
[1733592303606,0.17485,3999.5,3999.3,0.17486]
[1733592303814,0.7576,3999.4,3999.3,0.17486]
[1733592304107,0.7576,3999.4,3999.2,8.41231571]
[1733592304108,0.17486,3999.3,3999.2,4.48529145]
[1733592305111,0.17486,3999.3,3999.2,3.2078]
[1733592305409,3.12225809,3999.3,3999.2,3.2078]
[1733592305706,3.70499809,3999.4,3999.1,0.90039145]
[1733592305905,3.70499809,3999.4,3999.1,1.07526145]
[1733592305906,0.17486,3999.2,3999.1,1.07526145]
[1733592306102,0.17486,3999.2,3999.1,0.90039145]
[1733592307511,0.17486,3999.3,3999.1,1.07525145]
[1733592307705,0.17486,3999.2,3999.1,0.90039145]
[1733592307909,0.17486,3999.2,3999.0,0.17487]
[1733592308111,0.56597,3999.1,3998.9,0.17487]
[1733592308304,0.56597,3999.1,3999.0,0.90039145]
[1733592309109,0.3911,3999.1,3999.0,0.90039145]
[1733592310118,0.56597,3999.1,3999.0,0.90039145]
[1733592310610,0.56597,3999.1,3998.7,3.92702426]
[1733592310611,0.3911,3999.1,3998.7,3.92702426]
[1733592310914,0.3911,3999.1,3998.7,0.90039145]
[1733592311110,0.56597,3999.1,3998.8,0.17488]
[1733592311317,0.3911,3999.1,3998.8,0.17488]
[1733592311516,0.17487,3999.0,3998.7,0.90039145]
[1733592311809,0.17487,3999.0,3998.7,1.07527145]
[1733592312413,0.3911,3999.1,3998.7,0.90039145]
[1733592312613,0.17488,3998.8,3998.7,0.90039145]
[1733592313515,0.17488,3998.9,3998.7,0.90039145]
[1733592313713,0.7628,3998.8,3998.7,0.90039145]
[1733592313913,0.7628,3998.8,3998.7,1.07528145]
[1733592314916,0.7628,3998.8,3998.7,0.90039145]
[1733592315115,0.7628,3998.8,3998.5,1.0466]
[1733592315310,0.7628,3998.8,3998.5,1.94699145]
[1733592315513,0.93768,3998.8,3998.5,2.12188145]
[1733592315820,0.1749,3998.4,3998.3,3.2078]
[1733592316020,0.1749,3998.4,3998.3,3.5888]
[1733592316719,0.1749,3998.4,3998.3,3.2078]
[1733592317715,0.17491,3998.1,3998.0,0.381]
[1733592317915,2.94739809,3998.4,3998.0,0.381]
[1733592318116,0.17491,3998.2,3998.1,0.17491]
[1733592318321,0.17491,3998.3,3998.0,0.381]
[1733592318522,0.17491,3998.2,3998.1,0.17491]
[1733592319219,0.17491,3998.2,3998.0,0.381]
[1733592319415,0.17491,3998.2,3998.0,0.55591]
[1733592319823,3.32499809,3998.5,3998.2,0.17491]
[1733592320024,0.1749,3998.4,3998.2,0.1749]
[1733592320516,0.90039145,3998.3,3997.5,0.3764]
[1733592320719,0.4023,3998.2,3997.9,0.17492]
[1733592320912,0.4023,3998.2,3997.6,0.90039145]
[1733592321314,0.17492,3998.0,3997.8,0.17492]
[1733592321520,0.17492,3998.0,3997.6,0.90039145]
[1733592321712,0.4008,3997.9,3997.8,0.17493]
[1733592323828,0.4008,3997.9,3997.7,0.17493]
[1733592324029,0.4008,3997.9,3997.6,1.07532145]
[1733592324228,0.4008,3997.9,3997.7,0.17493]
[1733592324425,0.4008,3997.9,3997.6,0.90039145]
[1733592324633,0.57572,3997.9,3997.6,0.90039145]
[1733592324930,0.57572,3997.9,3997.5,0.95074]
[1733592325127,0.4008,3997.9,3997.5,0.3994]
[1733592325524,0.57572,3997.9,3997.5,0.57434]
[1733592325724,0.17493,3997.8,3997.5,0.57434]
[1733592325927,0.4008,3997.9,3997.5,0.3994]
[1733592326131,0.4008,3997.9,3997.8,0.17493]
[1733592326633,0.57721,3998.2,3997.8,0.17492]
[1733592326827,0.57721,3998.2,3997.6,1.27849145]
[1733592326828,0.3833,3998.1,3997.6,1.27849145]
[1733592327035,0.3833,3998.1,3997.8,0.17492]
[1733592327224,0.3833,3998.1,3997.9,0.17492]
[1733592327426,0.3833,3998.1,3997.8,0.17492]
[1733592328136,0.3833,3998.1,3997.6,1.27849145]
[1733592328330,0.3833,3998.1,3997.8,0.17492]
[1733592329229,0.3833,3998.1,3997.6,1.27849145]
[1733592329438,0.3833,3998.1,3997.8,0.17492]
[1733592330131,0.3833,3998.1,3997.7,0.17493]
[1733592330333,0.3833,3998.1,3997.6,1.27849145]
[1733592330524,0.3833,3998.1,3997.9,0.17492]
[1733592330934,0.3833,3998.1,3998.0,0.404]
[1733592332733,0.3833,3998.1,3998.0,0.57892]
[1733592333535,0.3833,3998.1,3998.0,0.404]
[1733592333829,0.3833,3998.1,3998.0,0.57892]
[1733592335041,0.17488,3998.9,3998.1,0.17491]
[1733592335246,1.68729145,3998.6,3998.3,0.1749]
[1733592335541,1.68729145,3998.6,3998.5,0.17489]
[1733592335738,0.4128,3998.6,3998.5,0.17489]
[1733592335937,1.31319145,3998.6,3998.4,0.17489]
[1733592336239,1.31319145,3998.6,3998.5,0.17489]
[1733592336240,0.4128,3998.6,3998.5,0.17489]
[1733592337541,0.4135,3998.8,3998.7,0.17489]
[1733592337732,0.4135,3998.8,3998.2,4.95707145]
[1733592337733,0.3906,3999.0,3998.8,0.17488]
[1733592337932,0.8041,3999.0,3998.9,0.3768]
[1733592338441,0.97897,3999.0,3998.9,0.3768]
[1733592338639,0.97897,3999.0,3998.3,0.3993]
[1733592338938,0.90039145,3998.8,3998.7,0.17488]
[1733592340733,0.90039145,3998.8,3998.7,0.17489]
[1733592341042,0.4128,3999.1,3998.4,0.4028]
[1733592341043,0.58767,3999.1,3998.9,0.17487]
[1733592341235,0.90039145,3999.0,3998.9,0.17487]
[1733592341542,1.07526145,3999.0,3998.8,0.17488]
[1733592341740,0.90039145,3999.0,3998.9,0.17488]
[1733592342440,0.17488,3998.9,3998.8,0.17488]
[1733592342745,1.07526145,3999.0,3998.4,0.4028]
[1733592342941,1.07527145,3999.0,3998.8,0.17488]
[1733592343144,0.17488,3998.9,3998.8,0.17488]
[1733592343341,1.07527145,3999.0,3998.4,0.4028]
[1733592344440,4.9117796,3998.7,3998.5,0.17489]
[1733592344737,4.9117796,3998.7,3998.6,0.17489]
[1733592345240,1.07527145,3999.0,3998.4,0.4028]
[1733592345437,1.07527145,3999.0,3998.8,0.17488]
[1733592345438,0.90039145,3999.0,3998.8,0.17488]
[1733592345640,0.90039145,3999.0,3998.4,0.4028]
[1733592345834,4.90268031,3998.6,3998.5,0.17489]
[1733592348231,6.93749716,3999.0,3998.6,0.17489]
[1733592348743,5.86222571,3998.9,3998.6,0.17489]
[1733592348943,6.03710571,3998.9,3998.6,0.17489]
[1733592349438,5.86222571,3999.0,3998.5,0.90039145]
[1733592349632,4.90529178,3998.6,3998.5,1.07528145]
[1733592352444,2.94387791,3999.0,3998.8,0.17488]
[1733592354137,2.94387791,3999.0,3998.5,0.90039145]
[1733592354946,7.84966936,3999.1,3999.0,0.17487]
[1733592357147,7.84966936,3999.1,3998.5,4.54543145]
[1733592357355,7.84966936,3999.1,3999.0,0.17487]
[1733592358555,4.64186936,3999.1,3999.0,0.17487]
[1733592358744,0.7976,3999.1,3999.0,0.17487]
[1733592359551,0.4128,3999.1,3999.0,0.57707]
[1733592359844,0.3934,3999.3,3999.0,0.7932]
[1733592360151,0.3786,3999.5,3999.4,0.17486]
[1733592368261,5.28102394,3999.5,3999.4,0.17486]
[1733592368668,0.3786,3999.5,3999.4,0.17486]
[1733592368864,5.28128006,3999.5,3999.4,0.17486]
[1733592370461,0.3786,3999.5,3999.4,0.17486]
[1733592373167,0.3786,3999.5,3999.4,3.38266]
[1733592373367,3.92227694,3999.5,3999.4,4.03666]
[1733592373562,3.92227694,3999.6,3999.4,3.8618]
[1733592373767,3.92227694,3999.7,3999.6,0.17485]
[1733592374062,4.90256916,3999.9,3999.8,0.17484]
[1733592374672,1.1668,4000.2,4000.0,0.17483]
[1733592374863,1.1668,4000.2,3999.9,0.17483]
[1733592375975,1.1668,4000.2,3999.5,1.29399145]
[1733592376172,1.1668,4000.2,4000.1,0.17482]
[1733592379968,1.1668,4000.2,4000.1,1.07521145]
[1733592380269,3.2078,4000.3,4000.2,0.17482]
[1733592380468,3.2078,4000.3,4000.2,0.57172]
[1733592380666,3.70982741,4000.7,4000.2,0.57172]
[1733592380667,3.70982741,4000.7,4000.6,0.1748]
[1733592380864,0.7683,4000.7,4000.6,0.1748]
[1733592381064,3.70982741,4000.7,4000.6,0.1748]
[1733592381670,0.7683,4000.7,4000.6,0.1748]
[1733592383274,3.2078,4000.8,4000.4,0.90039145]
[1733592383575,2.94152741,4001.0,4000.9,0.17479]
[1733592383771,3.31852741,4001.1,4001.0,0.17479]
[1733592384077,3.31852741,4001.1,4000.8,0.3907]
[1733592384372,3.31852741,4001.1,4000.8,0.56549]
[1733592384668,3.31852741,4001.1,4000.8,0.3907]
[1733592384864,3.31852741,4001.1,4001.0,0.17479]
[1733592385065,0.377,4001.1,4001.0,0.17479]
[1733592391880,0.55178,4001.1,4001.0,0.17479]
[1733592392271,0.377,4001.1,4001.0,0.17479]
[1733592392785,0.55178,4001.1,4001.0,0.17479]
[1733592394681,0.90039145,4001.0,4000.6,0.654]
[1733592394875,0.90039145,4001.0,4000.3,3.2078]
[1733592394876,0.90039145,4000.7,4000.3,3.2078]
[1733592395088,4.49991911,4000.6,4000.5,0.17481]
[1733592395273,0.17481,4000.4,4000.3,3.38261]
[1733592395479,4.08763158,4000.4,4000.3,3.38261]
[1733592395988,0.3847,4000.5,4000.2,0.90039145]
[1733592396287,0.3847,4000.5,4000.2,1.07521145]
[1733592396288,4.08789851,4000.3,4000.2,1.07521145]
[1733592396872,5.27621139,4000.5,4000.0,1.908]
[1733592397178,5.27621139,4000.5,3999.8,0.17483]
[1733592397179,0.17484,3999.9,3999.8,0.17483]
[1733592397375,4.89151139,4000.1,3999.6,0.90039145]
[1733592397582,4.291292,3999.8,3999.7,0.17484]
[1733592397782,0.3781,3999.8,3999.7,0.17484]
[1733592397981,0.7721,3999.8,3999.7,0.17484]
[1733592398190,0.17485,3999.6,3999.4,0.17485]
[1733592398479,0.94694,3999.8,3999.6,0.17484]
[1733592398687,0.7721,3999.8,3999.5,0.17485]
[1733592399079,0.7721,3999.8,3999.4,0.90039145]
[1733592399080,0.94694,3999.8,3999.6,0.17484]
[1733592399280,0.17484,3999.7,3999.6,0.17484]
[1733592399582,0.7721,3999.8,3999.6,0.17484]
[1733592399887,0.7721,3999.8,3999.7,0.17484]
[1733592400185,0.7721,3999.8,3999.4,0.90039145]
[1733592400881,0.7721,3999.8,3999.5,0.17485]
[1733592400882,0.94694,3999.8,3999.5,0.17485]
[1733592401077,0.7721,3999.8,3999.5,0.17485]
[1733592401982,0.94694,3999.8,3999.4,1.07524145]
[1733592402187,0.94694,3999.8,3999.5,0.17485]
[1733592402390,0.94694,3999.8,3999.5,0.56085]
[1733592402686,0.94694,3999.8,3999.5,0.386]
[1733592403185,0.94694,3999.8,3999.5,0.56085]
[1733592403382,0.7721,3999.8,3999.5,0.56085]
[1733592404382,0.94694,3999.8,3999.5,0.56085]
[1733592404685,0.7721,3999.8,3999.5,0.386]
[1733592404876,0.94694,3999.8,3999.5,0.56085]
[1733592405678,0.17484,3999.7,3999.4,0.90039145]
[1733592405882,3.1148074,3999.7,3999.4,1.07524145]
[1733592406278,2.9399674,3999.7,3999.4,0.90039145]
[1733592406780,2.9399674,3999.7,3999.6,0.17485]
[1733592407483,2.9399674,3999.7,3999.4,0.90039145]
[1733592407484,2.9399674,3999.7,3999.5,0.17485]
[1733592409286,2.9399674,3999.7,3999.6,0.17485]
[1733592409483,2.9399674,3999.9,3999.4,4.10819145]
[1733592409683,2.9399674,4000.0,3999.8,0.90039145]
[1733592409890,2.9399674,4000.2,4000.0,0.17483]
[1733592410087,2.9399674,4000.2,3999.9,0.55543]
[1733592410286,2.9399674,4000.1,3999.9,0.55543]
[1733592411283,2.9399674,4000.1,3999.9,0.3806]
[1733592411693,2.9399674,4000.0,3999.9,0.3806]
[1733592412086,2.9399674,4000.1,3999.9,0.55543]
[1733592412293,0.58782,4000.2,3999.9,0.55543]
[1733592413090,0.58782,4000.2,3999.9,0.3806]
[1733592413491,0.17483,4000.1,3999.9,0.3806]
[1733592413686,0.17483,4000.0,3999.9,0.3806]
[1733592414197,0.17483,4000.1,3999.9,0.3806]
[1733592414693,0.413,4000.2,3999.9,0.3806]
[1733592414889,0.17483,4000.0,3999.9,0.3806]
[1733592415189,0.17484,3999.8,3999.7,3.92193529]
[1733592415400,1.31339145,4000.2,3999.5,3.92193529]
[1733592415588,0.95474,3999.7,3999.6,0.17485]
[1733592416294,0.95474,3999.7,3999.5,4.09678529]
[1733592416496,0.4002,3999.6,3999.5,4.09678529]
[1733592416697,0.4002,3999.6,3999.5,0.17485]
[1733592418794,0.4002,3999.6,3999.5,4.09678529]
[1733592420193,3.3401674,3999.6,3999.5,0.17485]
[1733592420397,3.3401674,3999.6,3999.4,3.78185]
[1733592421194,3.3401674,3999.6,3999.4,3.2078]
[1733592421594,3.5150174,3999.6,3999.4,3.2078]
[1733592421900,2.9399674,3999.5,3999.4,3.2078]
[1733592422100,3.5150174,3999.6,3999.4,3.2078]
[1733592422300,3.5150174,3999.6,3999.4,3.38265]
[1733592423003,2.9399674,3999.5,3999.4,3.38265]
[1733592423202,3.5150174,3999.6,3999.4,3.38265]
[1733592423995,3.3401674,3999.6,3999.0,5.16569145]
[1733592424203,2.9399674,3999.4,3999.0,5.16569145]
[1733592424398,3.1148274,3999.4,3999.2,0.17486]
[1733592424599,2.9399674,3999.3,3999.2,0.17486]
[1733592424802,2.9399674,3999.3,3999.0,5.16569145]
[1733592424996,0.4007,3999.2,3999.1,0.17487]
[1733592425908,3.3406674,3999.2,3999.1,0.17487]
[1733592426499,3.3406674,3999.2,3999.0,4.51169145]
[1733592426500,0.17487,3999.1,3999.0,3.6113]
[1733592426699,0.17487,3999.1,3998.5,2.39606758]
[1733592426700,0.17488,3998.9,3998.7,1.55439145]
[1733592426909,3.3454674,3999.0,3998.8,0.17488]
[1733592427100,3.3454674,3999.0,3998.7,1.55439145]
[1733592427411,0.4055,3999.0,3998.9,0.17488]
[1733592427612,0.58037,3999.0,3998.8,4.09681529]
[1733592428300,0.4055,3999.0,3998.8,3.92193529]
[1733592428504,0.58037,3999.0,3998.8,0.17488]
[1733592428698,0.4055,3999.0,3998.8,0.17488]
[1733592429099,0.58037,3999.0,3998.7,5.65120674]
[1733592429507,0.4055,3999.0,3998.7,5.65120674]
[1733592429698,0.17488,3998.9,3998.7,5.65120674]
[1733592430106,0.17488,3998.9,3998.7,5.47632674]
[1733592430400,0.17488,3998.9,3998.7,1.55439145]
[1733592430803,0.58038,3999.0,3998.7,1.72927145]
[1733592431005,0.17488,3998.9,3998.7,1.72927145]
[1733592431204,0.17488,3998.9,3998.7,1.55439145]
[1733592431396,0.17488,3998.8,3998.7,1.55439145]
[1733592431602,0.17488,3998.8,3998.7,0.90039145]
[1733592432099,0.4055,3999.0,3998.6,4.49842529]
[1733592432306,0.17489,3998.7,3998.6,0.4016]
[1733592433205,1.30589145,3999.0,3998.6,0.57649]
[1733592433404,1.30589145,3999.0,3998.6,0.4016]
[1733592433712,1.30589145,3999.0,3998.2,3.92193529]
[1733592433907,0.1749,3998.5,3998.4,0.1749]
[1733592434210,0.1749,3998.5,3998.3,0.1749]
[1733592434510,1.1875,3998.4,3998.3,0.1749]
[1733592435811,1.3624,3998.4,3998.3,0.1749]
[1733592436014,1.1875,3998.4,3998.3,0.1749]
[1733592437407,1.1875,3998.4,3998.2,0.17491]
[1733592437613,1.1875,3998.4,3998.1,3.5906]
[1733592437812,1.1875,3998.4,3998.3,0.1749]
[1733592438414,1.1875,3998.4,3998.1,3.5906]
[1733592438612,1.3624,3998.4,3998.2,0.17491]
[1733592439104,1.1875,3998.4,3998.1,3.5906]
[1733592439304,0.1749,3998.3,3998.1,3.76551]
[1733592439519,1.3624,3998.4,3998.2,0.1749]
[1733592439816,1.1875,3998.4,3998.3,0.1749]
[1733592443913,1.1875,3998.4,3998.1,0.3828]
[1733592443914,1.3624,3998.4,3998.2,0.1749]
[1733592444711,1.3624,3998.4,3998.1,0.3828]
[1733592444922,1.3624,3998.4,3998.1,0.55771]
[1733592445117,1.3624,3998.4,3998.2,0.17491]
[1733592445820,1.1875,3998.4,3998.1,0.3828]
[1733592446022,1.1875,3998.4,3998.3,0.1749]
[1733592447943,1.3624,3998.4,3998.1,0.3828]
[1733592448138,1.1875,3998.4,3998.3,0.1749]
[1733592457048,1.1875,3998.4,3998.3,0.71064121]
[1733592457341,1.3624,3998.4,3998.3,0.53574121]
[1733592457539,1.1875,3998.4,3998.3,0.53574121]
[1733592458139,1.1875,3998.4,3998.3,0.71064121]
[1733592459143,1.3624,3998.4,3998.3,0.53574121]
[1733592459346,4.3023674,3998.4,3998.3,0.53574121]
[1733592459952,4.3023674,3998.4,3998.3,0.71064121]
[1733592460244,1.3624,3998.4,3998.3,0.71064121]
[1733592460444,1.3624,3998.4,3998.3,0.53574121]
[1733592461542,1.3624,3998.4,3998.3,0.71064121]
[1733592463257,5.28235653,3998.4,3998.3,0.53574121]
[1733592465040,1.3624,3998.4,3998.3,0.53574121]
[1733592467955,1.3624,3998.4,3998.3,0.71064121]
[1733592468954,1.3624,3998.4,3998.3,0.53574121]
[1733592470948,1.3624,3998.4,3998.3,0.71064121]
[1733592472356,1.3624,3998.4,3998.3,0.53574121]
[1733592472949,1.3624,3998.4,3998.3,0.71064121]
[1733592474053,1.1875,3998.4,3998.3,0.71064121]
[1733592474259,0.8072,3998.4,3998.3,0.71064121]
[1733592478058,0.8072,3998.4,3998.3,0.53574121]
[1733592478376,0.9821,3998.4,3998.3,0.53574121]
[1733592480452,0.9821,3998.4,3998.3,4.4576765]
[1733592481060,0.9821,3998.4,3998.3,4.6325765]
[1733592481257,0.9821,3998.4,3998.3,4.4576765]
[1733592481863,0.9821,3998.4,3998.3,4.6325765]
[1733592482169,0.9821,3998.4,3998.3,4.4576765]
[1733592482368,0.9821,3998.4,3998.3,4.6325765]
[1733592482862,4.90901054,3998.4,3998.3,0.71064121]
[1733592483056,0.9821,3998.4,3998.3,4.4576765]
[1733592484758,4.90901054,3998.4,3998.3,4.4576765]
[1733592485463,0.9821,3998.4,3998.3,4.4576765]
[1733592486665,4.90901054,3998.4,3998.3,4.4576765]
[1733592487367,0.9821,3998.4,3998.3,4.4576765]
[1733592487565,0.9821,3998.4,3998.3,0.53574121]
[1733592491276,6.8620348,3998.4,3998.3,0.53574121]
[1733592495573,10.78763113,3998.4,3998.3,0.53574121]
[1733592495871,4.90769633,3998.4,3998.3,0.53574121]